fUSD/lending_fUSD_20251013
["ID","MTS","AMOUNT","RATE_DAILY","PERIOD"]
[391096473,1760335801241,-636.29262286,0.00013112,2]
[391096474,1760335804459,-284.94743203,0.00013112,2]
[391096475,1760335810170,-65.64994511,0.00013112,2]
[391096476,1760335810192,-129.51950359,0.00013113,2]
[391096482,1760335832300,-200.19553204,0.00013113,2]
[391096483,1760335832310,-168.0,0.000133,2]
[391096484,1760335832319,-165.45453756,0.00013358,2]
[391096485,1760335832358,-506.14406425,0.00013358,2]
[391096486,1760335832418,-528.40139819,0.00013358,2]
[391096487,1760335832427,-300.0,0.00013358,2]
[391096488,1760335832436,-300.0,0.00013358,2]
[391096489,1760335832446,-250.0,0.00013358,2]
[391096490,1760335832455,-168.0,0.00013359,2]
[391096491,1760335832468,-500.0,0.00013359,2]
[391096492,1760335832478,-500.0,0.00013359,2]
[391096493,1760335832487,-500.0,0.00013359,2]
[391096494,1760335832496,-500.0,0.00013359,2]
[391096495,1760335832505,-298.98576702,0.00013359,2]
[391096496,1760335832514,-301.33,0.0001345,2]
[391096497,1760335832523,-150.0,0.00013646,2]
[391096498,1760335832532,-200.0,0.00013678,2]
[391096499,1760335832541,-2638.63967872,0.0001368,2]
[391096500,1760335832550,-8233.8471576,0.00013682,2]
[391096501,1760335832559,-558.69,0.00013685,2]
[391096502,1760335832567,-200.0,0.00013699,2]
[391096503,1760335832576,-500.0,0.00013726,2]
[391096504,1760335832585,-168.0,0.00013739,2]
[391096505,1760335832594,-168.0,0.00013766,2]
[391096506,1760335832604,-168.0,0.00013778,2]
[391096507,1760335832613,-168.0,0.00013785,2]
[391096508,1760335832622,-168.0,0.00013795,2]
[391096509,1760335832630,-168.0,0.00013807,2]
[391096510,1760335832639,-2214.93367251,0.00013828,2]
[391096511,1760335832648,-3539.777517,0.00013828,2]
[391096512,1760335832658,-174.68510136,0.00013828,2]
[391096513,1760335832667,-157.45937706,0.00013828,2]
[391096514,1760335832676,-217.56045865,0.00013919,2]
[391096515,1760335832685,-530.89594702,0.00013927,2]
[391096516,1760335832694,-1000.0,0.00013927,15]
[391096518,1760335832703,-1000.0,0.00013927,15]
[391096519,1760335832712,-1000.0,0.00013927,15]
[391096521,1760335832721,-1000.0,0.00013927,15]
[391096523,1760335832730,-1000.0,0.00013927,15]
[391096525,1760335832740,-1000.0,0.00013927,15]
[391096528,1760335832749,-1000.0,0.00013927,15]
[391096529,1760335832758,-1000.0,0.00013927,15]
[391096531,1760335832767,-1000.0,0.00013927,15]
[391096532,1760335832776,-1000.0,0.00013927,15]
[391096533,1760335832785,-1000.0,0.00013927,15]
[391096534,1760335832794,-1000.0,0.00013927,15]
[391096535,1760335832803,-1000.0,0.00013927,15]
[391096536,1760335832812,-1000.0,0.00013927,15]
[391096537,1760335832821,-1120.86940992,0.00013927,15]
[391096538,1760335832830,-150.0,0.00013927,2]
[391096539,1760335832839,-39957.169573,0.00013928,2]
[391096540,1760335832848,-25519.4816165,0.00013928,2]
[391096541,1760335832857,-6836.7654871,0.00013928,2]
[391096542,1760335832866,-105.50620081,0.00013928,2]
[391096543,1760335832877,-6362.97970929,0.00013928,2]
[391096544,1760335832886,-3523.8324428,0.00013928,2]
[391096545,1760335832895,-845.5695796,0.00013943,2]
[391096546,1760335832904,-2214.93367244,0.00013947,2]
[391096547,1760335832913,-1979.71353696,0.00013947,2]
[391096548,1760335832925,-1560.06397998,0.00013947,2]
[391096549,1760335832935,-500.0,0.00013973,2]
[391096550,1760335832946,-504.220039,0.00013973,2]
[391096551,1760335832955,-6904.43681,0.0001398,2]
[391096552,1760335832965,-356.86569938,0.0001399,2]
[391096553,1760335832975,-175.37,0.00014049,2]
[391096554,1760335832985,-2214.93367244,0.00014066,2]
[391096555,1760335832994,-3539.77751694,0.00014066,2]
[391096556,1760335833009,-2635.16879465,0.00014124,2]
[391096557,1760335833018,-151.0,0.00014124,2]
[391096558,1760335833028,-608.98682383,0.00014124,2]
[391096559,1760335833037,-993.83011387,0.00014131,2]
[391096560,1760335833047,-151.0,0.00014135,2]
[391096561,1760335833360,-9211.34798985,0.00014135,2]
[391096562,1760335833373,-308.06374112,0.00014135,2]
[391096563,1760335833382,-174.01187306,0.00014135,2]
[391096564,1760335833391,-267.46074303,0.00014135,2]
[391096565,1760335833401,-2000.0,0.00014154,2]
[391096566,1760335833410,-2214.93367244,0.00014185,2]
[391096567,1760335833419,-3539.77751694,0.00014185,2]
[391096568,1760335833428,-8211.99663469,0.0001419,2]
[391096569,1760335833444,-1019.87057724,0.0001419,2]
[391096570,1760335833457,-320.30065354,0.0001419,2]
[391096571,1760335833466,-1000.0,0.000142,2]
[391096572,1760335833476,-168.0,0.00014205,2]
[391096573,1760335833487,-166.66,0.0001423,2]
[391096574,1760335833495,-4921.0,0.00014232,2]
[391096575,1760335833505,-635.03934646,0.00014245,2]
[391096576,1760335833516,-2592.46188426,0.00014245,2]
[391096582,1760335838501,-474.66254457,0.00013927,2]
[391096583,1760335838515,-500.0,0.00013927,2]
[391096584,1760335838533,-575.74983538,0.00013927,2]
[391096585,1760335838550,-500.0,0.00013927,2]
[391096586,1760335838567,-500.0,0.00013927,2]
[391096587,1760335838581,-500.0,0.00013927,2]
[391096588,1760335838598,-500.0,0.00013927,2]
[391096590,1760335838614,-500.0,0.00013927,2]
[391096592,1760335838629,-31857.93590837,0.00013928,2]
[391096596,1760335838662,-2062.5,0.00013928,2]
[391096604,1760335838897,500.0,0.00011986,2]
[391096606,1760335840221,-2350.35799999,0.00013928,2]
[391096607,1760335840238,-2667.1397038,0.00013928,2]
[391096608,1760335840338,-391.69379986,0.00013928,2]
[391096609,1760335840355,-1156.8,0.00013928,2]
[391096611,1760335840764,-1.6e-07,0.00013928,2]
[391096614,1760335843454,-567.56996216,0.00013563,3]
[391096615,1760335843641,-98.43003784,0.00013563,3]
[391096616,1760335843650,-3840.30476156,0.00013928,2]
[391096620,1760335846223,-48793.20439699,0.00013928,2]
[391096621,1760335846404,-3206.5167564,0.00013928,2]
[391096626,1760335863693,500.0,0.00011986,2]
[391096627,1760335927992,506.70321429,0.00011986,2]
[391096628,1760335941630,150.356441,0.00027397,120]
[391096633,1760336641193,3377.53392276,0.00027,120]
[391096642,1760337031395,-250.0,0.00013369,7]
[391096643,1760337031404,-282.5423302,0.0001341,2]
[391096660,1760337037385,-1717.4576698,0.0001341,2]
[391096661,1760337037397,-220.0,0.00013451,2]
[391096662,1760337037409,-250.0,0.00013575,2]
[391096663,1760337037420,-221.36523344,0.00013669,2]
[391096664,1760337037431,-480.3,0.00013699,2]
[391096665,1760337037444,-335.0,0.00013747,2]
[391096666,1760337037455,-335.0,0.00013812,2]
[391096667,1760337037464,-335.0,0.00013864,2]
[391096668,1760337037473,-845.5695796,0.0001396,2]
[391096669,1760337037483,-1000.0,0.00014,2]
[391096670,1760337037492,-593.16375129,0.00014001,2]
[391096671,1760337037501,-1200.0,0.00014037,2]
[391096672,1760337037510,-300.0,0.00014037,2]
[391096673,1760337037519,-361.27449301,0.00014038,2]
[391096674,1760337037528,-151.0,0.00014038,2]
[391096675,1760337037538,-267.46074303,0.00014038,2]
[391096676,1760337037551,-9211.34798985,0.00014038,2]
[391096677,1760337037560,-168.0,0.00014067,2]
[391096678,1760337037569,-9552.16786547,0.00014093,2]
[391096679,1760337037579,-1000.0,0.000141,2]
[391096680,1760337037588,-168.0,0.00014118,2]
[391096681,1760337037597,-9905.5980765,0.00014148,2]
[391096682,1760337037607,-150.0,0.00014163,2]
[391096684,1760337037999,-948.28,0.00014164,2]
[391096685,1760337038011,-694.86,0.00014164,2]
[391096686,1760337038021,-694.86,0.000142,2]
[391096687,1760337038030,-694.86,0.000142,2]
[391096688,1760337038040,-335.0,0.00014201,2]
[391096689,1760337038050,-10272.10520533,0.00014203,2]
[391096690,1760337038060,-189.88527989,0.00014245,2]
[391096691,1760337038069,-304.49341191,0.00014245,2]
[391096692,1760337038082,-5753.69734,0.00014245,2]
[391096693,1760337038091,-10652.17309792,0.00014258,2]
[391096694,1760337038101,-1000.0,0.000143,2]
[391096695,1760337038111,-1503.04,0.000143,2]
[391096696,1760337038120,-474.4,0.000143,2]
[391096697,1760337038129,-546.25,0.000143,2]
[391096698,1760337038139,-10763.97390951,0.00014313,2]
[391096699,1760337038195,-282.32959304,0.00014313,2]
[391096700,1760337038206,-452.0,0.00014332,2]
[391096701,1760337038216,-264.90526787,0.00014345,2]
[391096702,1760337038226,-144.00024959,0.00014368,2]
[391096704,1760337039416,-152.24670596,0.00014368,2]
[391096705,1760337039427,-335.71380128,0.00014368,2]
[391096706,1760337039439,-1058.33633602,0.00014368,2]
[391096707,1760337039452,-1642.21040517,0.00014368,2]
[391096712,1760337042577,-1141.41917286,0.00014368,2]
[391096713,1760337042589,-6890.28537087,0.00014368,2]
[391096716,1760337045348,-243.05139635,0.00014368,2]
[391096717,1760337045358,-1000.0,0.000144,2]
[391096718,1760337045367,-11878.85235123,0.00014423,2]
[391096719,1760337045377,-565.95414233,0.00014438,2]
[391096720,1760337045387,-203.38446236,0.00014439,2]
[391096721,1760337045399,-689.83186603,0.00014439,2]
[391096722,1760337045435,-1178.41819901,0.00014439,2]
[391096723,1760337045526,-131.74993496,0.00014439,2]
[391096724,1760337045535,-2000.0,0.00014439,2]
[391096725,1760337045544,-821.10011405,0.00014439,2]
[391096726,1760337045615,-1100.07510066,0.00014439,2]
[391096740,1760337958851,250.85,6.617e-05,2]
[391096741,1760338113506,475.0,0.000161,30]
[391096742,1760338222499,6100.0,0.00027397,120]
[391096770,1760338232298,-200.0,0.00013441,2]
[391096771,1760338232308,-1600.0,0.00013463,2]
[391096772,1760338232317,-75.3460188,0.00013502,2]
[391096773,1760338232409,-87.3539812,0.00013502,2]
[391096774,1760338232418,-250.0,0.00013522,2]
[391096775,1760338232427,-1500.0,0.00013623,2]
[391096776,1760338232437,-1000.0,0.00013699,2]
[391096777,1760338232448,-400.0,0.000137,5]
[391096778,1760338232458,-1200.0,0.0001378,2]
[391096779,1760338232467,-300.0,0.0001378,2]
[391096780,1760338232476,-300.0,0.0001378,2]
[391096781,1760338232485,-151.0,0.00013781,2]
[391096782,1760338232495,-668.65185757,0.00013781,2]
[391096783,1760338232503,-4698.68838693,0.00013781,2]
[391096784,1760338232515,-4400.42650008,0.00013781,2]
[391096785,1760338232526,-112.23310284,0.00013781,2]
[391096786,1760338232536,-406.71286541,0.00013781,2]
[391096787,1760338232573,-5.8526224,0.00013781,2]
[391096788,1760338232582,-326.03172292,0.000138,5]
[391096789,1760338232628,-573.96827708,0.000138,5]
[391096790,1760338232638,-150.0,0.00013835,2]
[391096791,1760338232647,-4242.50528878,0.00013836,2]
[391096792,1760338232659,-846.46166189,0.00013836,2]
[391096793,1760338232671,-935.66626413,0.00013836,2]
[391096794,1760338232681,-526.65751705,0.00013836,2]
[391096795,1760338232692,-370.53545966,0.00013836,2]
[391096796,1760338232727,-2630.34167396,0.00013836,2]
[391096797,1760338232735,-2906.38140914,0.00013891,2]
[391096798,1760338232746,-6999.21666736,0.00013891,2]
[391096799,1760338232755,-1400.0,0.000139,5]
[391096800,1760338232765,-4332.55498002,0.00013946,2]
[391096801,1760338232800,-5939.55022531,0.00013946,2]
[391096802,1760338232812,-1196.92624594,0.00014001,2]
[391096803,1760338232824,-452.0,0.0001403,2]
[391096804,1760338232842,-345.48,0.00014055,2]
[391096805,1760338232855,-546.15,0.00014055,2]
[391096806,1760338232868,-157.60469806,0.00014055,2]
[391096807,1760338232882,-18.26530194,0.00014055,2]
[391096808,1760338232896,-413.23,0.00014055,2]
[391096809,1760338232907,-595.0,0.00014078,2]
[391096810,1760338232918,-845.56957959,0.00014111,2]
[391096811,1760338232929,-2000.0,0.00014118,2]
[391096812,1760338232941,-2000.0,0.00014118,2]
[391096813,1760338232951,-2000.0,0.00014118,2]
[391096814,1760338232960,-2000.0,0.00014118,2]
[391096815,1760338232970,-2000.0,0.00014118,2]
[391096816,1760338232981,-1401.649,0.00014118,2]
[391096817,1760338232992,-180.85867014,0.00014138,2]
[391096818,1760338233001,-4638.04402867,0.00014138,2]
[391096819,1760338233011,-856.4519809,0.00014138,2]
[391096820,1760338233021,-159.10979423,0.00014138,2]
[391096821,1760338233032,-2500.0,0.00014146,2]
[391096822,1760338233042,-166.179252,0.00014146,2]
[391096823,1760338233051,-151.0,0.00014146,2]
[391096824,1760338233061,-166.179252,0.00014146,2]
[391096825,1760338233071,-151.0,0.00014146,2]
[391096826,1760338233081,-151.0,0.00014146,2]
[391096827,1760338233090,-166.179252,0.00014146,2]
[391096828,1760338233099,-151.0,0.00014146,2]
[391096829,1760338233108,-151.0,0.00014146,2]
[391096830,1760338233118,-166.179252,0.00014146,2]
[391096831,1760338233127,-151.0,0.00014146,2]
[391096832,1760338233137,-151.0,0.00014146,2]
[391096833,1760338233146,-224.12784,0.00014146,2]
[391096834,1760338233155,-151.0,0.00014146,2]
[391096835,1760338233165,-715.407004,0.00014146,2]
[391096836,1760338233174,-151.863672,0.00014146,2]
[391096837,1760338233183,-151.0,0.00014146,2]
[391096838,1760338233192,-224.12784,0.00014146,2]
[391096839,1760338233201,-151.0,0.00014146,2]
[391096840,1760338233211,-151.0,0.00014146,2]
[391096841,1760338233220,-151.0,0.00014146,2]
[391096842,1760338233229,-224.12784,0.00014146,2]
[391096843,1760338233238,-151.0,0.00014146,2]
[391096844,1760338233247,-151.0,0.00014146,2]
[391096845,1760338233257,-224.12784,0.00014146,2]
[391096846,1760338233270,-7001.39955873,0.00014148,2]
[391096848,1760338237599,-55.28820986,0.00014146,2]
[391096850,1760338237615,-95.71179014,0.00014146,2]
[391096851,1760338237624,-151.0,0.00014146,2]
[391096852,1760338237634,-715.407004,0.00014146,2]
[391096853,1760338237643,-151.0,0.00014146,2]
[391096854,1760338237653,-171.403251,0.00014146,2]
[391096855,1760338237664,-8.60397986,0.00014146,2]
[391096856,1760338237688,-461.52,0.00014146,2]
[391096857,1760338237699,-245.28302414,0.00014146,2]
[391096858,1760338237709,-171.403251,0.00014146,2]
[391096859,1760338237718,-715.407004,0.00014146,2]
[391096860,1760338237727,-103182.03639901,0.00014148,2]
[391096873,1760338238202,-143876.83119673,0.00014148,2]
[391096878,1760338238237,-171.403251,0.00014146,2]
[391096880,1760338238247,-522.81778989,0.00014148,2]
[391096899,1760338239777,-500.0,0.00013086,2]
[391096900,1760338239790,-151.0,0.00014146,2]
[391096901,1760338239802,-1317.34400006,0.00014146,2]
[391096902,1760338239816,-2670.17241096,0.00014146,2]
[391096903,1760338239829,-2305.44355898,0.00014146,2]
[391096904,1760338239840,-627.330465,0.00014146,2]
[391096905,1760338239851,-171.403251,0.00014146,2]
[391096906,1760338239860,-5558.32272502,0.00014148,2]
[391096921,1760338243211,-151.0,0.00014146,2]
[391096922,1760338243220,-6292.95997,0.00014146,2]
[391096923,1760338243230,-627.330465,0.00014146,2]
[391096924,1760338243239,-151.0,0.00014146,2]
[391096925,1760338243248,-151.0,0.00014146,2]
[391096926,1760338243257,-6292.95997,0.00014146,2]
[391096927,1760338243267,-627.330465,0.00014146,2]
[391096928,1760338243277,-41108.45195531,0.00014148,2]
[391096929,1760338243287,-1000.0,0.00014148,2]
[391096930,1760338243296,-880.687,0.00014148,2]
[391096931,1760338243305,-1000.0,0.00014148,2]
[391096932,1760338243314,-1000.0,0.00014148,2]
[391096933,1760338243324,-1000.0,0.00014148,2]
[391096934,1760338243333,-595.195,0.00014148,2]
[391096935,1760338243343,-151.0,0.00014148,2]
[391096936,1760338243352,-151.0,0.00014148,2]
[391096937,1760338243368,-5400.0,0.00014148,2]
[391096938,1760338243383,-5400.0,0.00014148,2]
[391096939,1760338243761,-151.0,0.00014148,2]
[391096940,1760338243772,-5400.0,0.00014148,2]
[391096941,1760338243782,-151.0,0.00014148,2]
[391096942,1760338243792,-151.0,0.00014148,2]
[391096943,1760338243802,-151.0,0.00014148,2]
[391096944,1760338243811,-5400.0,0.00014148,2]
[391096945,1760338243821,-151.0,0.00014148,2]
[391096946,1760338243830,-151.0,0.00014148,2]
[391096947,1760338243839,-418.691018,0.00014148,2]
[391096948,1760338243849,-237.396716,0.00014148,2]
[391096949,1760338243860,-151.0,0.00014148,2]
[391096950,1760338243869,-151.0,0.00014148,2]
[391096951,1760338243878,-237.396716,0.00014148,2]
[391096952,1760338243888,-418.691018,0.00014148,2]
[391096953,1760338243898,-151.0,0.00014148,2]
[391096954,1760338243908,-237.396716,0.00014148,2]
[391096955,1760338243917,-418.691018,0.00014148,2]
[391096956,1760338243927,-151.0,0.00014148,2]
[391096957,1760338243936,-168.517429,0.00014148,2]
[391096958,1760338243945,-237.396716,0.00014148,2]
[391096959,1760338243955,-151.0,0.00014148,2]
[391096960,1760338243964,-418.691018,0.00014148,2]
[391096961,1760338243974,-168.517429,0.00014148,2]
[391096962,1760338243985,-217.700652,0.00014148,2]
[391096963,1760338243995,-151.0,0.00014148,2]
[391096964,1760338244005,-184.225865,0.00014148,2]
[391096965,1760338244014,-168.517429,0.00014148,2]
[391096966,1760338244024,-217.700652,0.00014148,2]
[391096967,1760338244034,-151.0,0.00014148,2]
[391096968,1760338244043,-184.225865,0.00014148,2]
[391096969,1760338244053,-168.517429,0.00014148,2]
[391096970,1760338244062,-217.700652,0.00014148,2]
[391096971,1760338244072,-184.225865,0.00014148,2]
[391096972,1760338244081,-217.700652,0.00014148,2]
[391096973,1760338244091,-184.225865,0.00014148,2]
[391096974,1760338244101,-151.0,0.00014148,2]
[391096975,1760338244112,-363.02009,0.00014148,2]
[391096976,1760338244122,-363.02009,0.00014148,2]
[391096977,1760338244133,-363.02009,0.00014148,2]
[391096978,1760338244143,-151.0,0.00014148,2]
[391096979,1760338244152,-363.02009,0.00014148,2]
[391096980,1760338244162,-151.0,0.00014148,2]
[391096981,1760338244172,-151.0,0.00014148,2]
[391096982,1760338244181,-151.0,0.00014148,2]
[391096983,1760338244190,-530.252809,0.00014148,2]
[391096984,1760338244204,-151.0,0.00014148,2]
[391096985,1760338244215,-197.202403,0.00014148,2]
[391096986,1760338244226,-530.252809,0.00014148,2]
[391096987,1760338244238,-197.202403,0.00014148,2]
[391096988,1760338244250,-151.0,0.00014148,2]
[391096989,1760338244260,-530.252809,0.00014148,2]
[391096990,1760338244271,-197.202403,0.00014148,2]
[391096991,1760338244283,-151.0,0.00014148,2]
[391096992,1760338244293,-530.252809,0.00014148,2]
[391096993,1760338244303,-151.0,0.00014148,2]
[391096994,1760338244314,-197.202403,0.00014148,2]
[391096995,1760338244324,-151.0,0.00014148,2]
[391096996,1760338244334,-151.0,0.00014148,2]
[391096997,1760338244343,-151.0,0.00014148,2]
[391096998,1760338244353,-151.0,0.00014148,2]
[391096999,1760338244363,-595.504256,0.00014148,2]
[391097000,1760338244372,-595.504256,0.00014148,2]
[391097001,1760338244382,-314.713913,0.00014148,2]
[391097002,1760338244391,-151.0,0.00014148,2]
[391097003,1760338244402,-314.713913,0.00014148,2]
[391097004,1760338244411,-595.504256,0.00014148,2]
[391097005,1760338244421,-151.0,0.00014148,2]
[391097006,1760338244430,-595.504256,0.00014148,2]
[391097007,1760338244440,-151.0,0.00014148,2]
[391097008,1760338244450,-1202.732348,0.00014148,2]
[391097009,1760338244459,-151.0,0.00014148,2]
[391097010,1760338244469,-314.713913,0.00014148,2]
[391097011,1760338244478,-1202.732348,0.00014148,2]
[391097012,1760338244487,-151.0,0.00014148,2]
[391097013,1760338244497,-314.713913,0.00014148,2]
[391097014,1760338244506,-151.0,0.00014148,2]
[391097015,1760338244515,-595.504256,0.00014148,2]
[391097016,1760338244525,-151.0,0.00014148,2]
[391097017,1760338244534,-151.0,0.00014148,2]
[391097018,1760338244543,-1202.732348,0.00014148,2]
[391097019,1760338244554,-595.504256,0.00014148,2]
[391097020,1760338244564,-151.0,0.00014148,2]
[391097021,1760338244573,-151.0,0.00014148,2]
[391097022,1760338244586,-151.0,0.00014148,2]
[391097023,1760338244598,-1202.732348,0.00014148,2]
[391097024,1760338244608,-151.0,0.00014148,2]
[391097025,1760338244618,-151.0,0.00014148,2]
[391097026,1760338244629,-152.114882,0.00014148,2]
[391097027,1760338244640,-245.989686,0.00014148,2]
[391097028,1760338244650,-314.713913,0.00014148,2]
[391097029,1760338244660,-151.0,0.00014148,2]
[391097030,1760338244671,-245.989686,0.00014148,2]
[391097031,1760338244680,-314.713913,0.00014148,2]
[391097032,1760338244690,-466.759693,0.00014148,2]
[391097033,1760338244699,-595.504256,0.00014148,2]
[391097034,1760338244709,-466.759693,0.00014148,2]
[391097035,1760338244718,-595.504256,0.00014148,2]
[391097036,1760338244728,-1202.732348,0.00014148,2]
[391097037,1760338244738,-151.0,0.00014148,2]
[391097038,1760338244747,-1202.732348,0.00014148,2]
[391097039,1760338244757,-151.0,0.00014148,2]
[391097040,1760338244767,-314.713913,0.00014148,2]
[391097041,1760338244776,-151.0,0.00014148,2]
[391097042,1760338244787,-245.989686,0.00014148,2]
[391097043,1760338244796,-275.307607,0.00014148,2]
[391097044,1760338244806,-314.713913,0.00014148,2]
[391097045,1760338244815,-245.989686,0.00014148,2]
[391097046,1760338244827,-466.759693,0.00014148,2]
[391097047,1760338244837,-466.759693,0.00014148,2]
[391097048,1760338244847,-151.0,0.00014148,2]
[391097049,1760338244857,-1202.732348,0.00014148,2]
[391097050,1760338244867,-151.0,0.00014148,2]
[391097051,1760338244877,-1202.732348,0.00014148,2]
[391097052,1760338244889,-245.989686,0.00014148,2]
[391097053,1760338244898,-245.989686,0.00014148,2]
[391097054,1760338244909,-466.759693,0.00014148,2]
[391097055,1760338244919,-466.759693,0.00014148,2]
[391097056,1760338244930,-245.989686,0.00014148,2]
[391097057,1760338244941,-466.759693,0.00014148,2]
[391097058,1760338244954,-245.989686,0.00014148,2]
[391097059,1760338244964,-466.759693,0.00014148,2]
[391097060,1760338244974,-201.577024,0.00014148,2]
[391097061,1760338244985,-153.034446,0.00014148,2]
[391097062,1760338244995,-497.024627,0.00014148,2]
[391097063,1760338245005,-201.577024,0.00014148,2]
[391097064,1760338245015,-497.024627,0.00014148,2]
[391097065,1760338245025,-201.577024,0.00014148,2]
[391097066,1760338245035,-497.024627,0.00014148,2]
[391097067,1760338245045,-201.577024,0.00014148,2]
[391097068,1760338245055,-497.024627,0.00014148,2]
[391097069,1760338245065,-151.0,0.00014148,2]
[391097070,1760338245074,-151.0,0.00014148,2]
[391097071,1760338245084,-201.577024,0.00014148,2]
[391097072,1760338245094,-497.024627,0.00014148,2]
[391097073,1760338245105,-201.577024,0.00014148,2]
[391097074,1760338245115,-497.024627,0.00014148,2]
[391097075,1760338245125,-151.0,0.00014148,2]
[391097076,1760338245135,-151.0,0.00014148,2]
[391097077,1760338245145,-201.577024,0.00014148,2]
[391097078,1760338245155,-497.024627,0.00014148,2]
[391097079,1760338245164,-201.577024,0.00014148,2]
[391097080,1760338245174,-497.024627,0.00014148,2]
[391097081,1760338245184,-151.0,0.00014148,2]
[391097082,1760338245193,-151.0,0.00014148,2]
[391097083,1760338245203,-151.0,0.00014148,2]
[391097084,1760338245212,-151.0,0.00014148,2]
[391097085,1760338245222,-200.01789,0.00014148,2]
[391097086,1760338245232,-276.209474,0.00014148,2]
[391097087,1760338245242,-200.01789,0.00014148,2]
[391097088,1760338245252,-151.0,0.00014148,2]
[391097089,1760338245261,-151.0,0.00014148,2]
[391097090,1760338245272,-200.01789,0.00014148,2]
[391097091,1760338245282,-200.01789,0.00014148,2]
[391097092,1760338245291,-151.0,0.00014148,2]
[391097093,1760338245301,-151.0,0.00014148,2]
[391097094,1760338245311,-195.395347,0.00014148,2]
[391097095,1760338245320,-200.01789,0.00014148,2]
[391097096,1760338245330,-200.01789,0.00014148,2]
[391097097,1760338245340,-151.0,0.00014148,2]
[391097098,1760338245349,-200.01789,0.00014148,2]
[391097099,1760338245359,-151.0,0.00014148,2]
[391097100,1760338245369,-151.0,0.00014148,2]
[391097101,1760338245379,-200.01789,0.00014148,2]
[391097102,1760338245388,-151.0,0.00014148,2]
[391097103,1760338245398,-151.0,0.00014148,2]
[391097104,1760338245408,-151.0,0.00014148,2]
[391097105,1760338245418,-290.546803,0.00014148,2]
[391097106,1760338245428,-151.0,0.00014148,2]
[391097107,1760338245439,-290.546803,0.00014148,2]
[391097109,1760338245450,-151.0,0.00014148,2]
[391097111,1760338245459,-151.0,0.00014148,2]
[391097113,1760338245470,-151.0,0.00014148,2]
[391097115,1760338245480,-151.0,0.00014148,2]
[391097117,1760338245490,-290.546803,0.00014148,2]
[391097118,1760338245500,-152.71884,0.00014148,2]
[391097119,1760338245510,-290.546803,0.00014148,2]
[391097120,1760338245520,-151.0,0.00014148,2]
[391097121,1760338245530,-154.122407,0.00014148,2]
[391097122,1760338245539,-290.546803,0.00014148,2]
[391097123,1760338245549,-151.0,0.00014148,2]
[391097124,1760338245558,-151.0,0.00014148,2]
[391097125,1760338245568,-290.546803,0.00014148,2]
[391097126,1760338245578,-151.0,0.00014148,2]
[391097127,1760338245588,-290.546803,0.00014148,2]
[391097128,1760338245603,-151.0,0.00014148,2]
[391097129,1760338245612,-290.546803,0.00014148,2]
[391097130,1760338245623,-151.0,0.00014148,2]
[391097131,1760338245636,-151.0,0.00014148,2]
[391097132,1760338245647,-151.0,0.00014148,2]
[391097133,1760338245656,-151.0,0.00014148,2]
[391097134,1760338245669,-151.0,0.00014148,2]
[391097135,1760338245681,-151.0,0.00014148,2]
[391097136,1760338245691,-151.0,0.00014148,2]
[391097137,1760338245700,-151.0,0.00014148,2]
[391097138,1760338245712,-151.0,0.00014148,2]
[391097139,1760338245723,-156.796327,0.00014148,2]
[391097140,1760338245735,-166.179252,0.00014148,2]
[391097141,1760338245745,-166.179252,0.00014148,2]
[391097142,1760338245756,-166.179252,0.00014148,2]
[391097143,1760338245766,-151.0,0.00014148,2]
[391097144,1760338245775,-151.0,0.00014148,2]